bitfinex-derivatives/quotes_BTCF0:USTF0_20250722
["timestamp","ask_amount","ask_price","bid_price","bid_amount"]
[1753192404935,0.8010129,118520.0,118510.0,1.0867696]
[1753192405134,0.3291939,118500.0,118490.0,0.2998697]
[1753192405435,0.47802,118520.0,118510.0,0.2896496]
[1753192405633,0.2858754,118520.0,118510.0,1.4564496]
[1753192405833,0.012,118520.0,118510.0,2.1816896]
[1753192406033,0.002,118520.0,118510.0,2.1816896]
[1753192406339,0.38515341,118530.0,118520.0,0.1686555]
[1753192406538,0.40515341,118530.0,118520.0,0.2896355]
[1753192406934,0.76595341,118530.0,118520.0,0.12098]
[1753192407134,1.16124341,118530.0,118520.0,0.91502]
[1753192407334,0.79124341,118530.0,118520.0,0.91502]
[1753192407537,0.1686555,118520.0,118510.0,0.1696646]
[1753192407741,0.7227155,118520.0,118510.0,0.76981]
[1753192407936,1.0427155,118520.0,118510.0,0.07124]
[1753192408142,1.04953319,118520.0,118510.0,0.76925]
[1753192408441,0.7227155,118520.0,118510.0,0.76925]
[1753192408642,0.5394555,118520.0,118510.0,1.0836096]
[1753192408843,0.5294555,118520.0,118510.0,0.19222]
[1753192409040,1.04953319,118520.0,118510.0,0.76845]
[1753192409238,1.37953319,118520.0,118510.0,0.72316]
[1753192409442,0.7127155,118520.0,118510.0,0.72308]
[1753192409740,0.7127155,118520.0,118510.0,1.0829697]
[1753192409741,0.5294555,118520.0,118510.0,1.0829697]
[1753192409937,0.5294555,118520.0,118510.0,1.0826096]
[1753192410244,0.4986555,118520.0,118510.0,1.0914496]
[1753192410643,0.6138755,118520.0,118510.0,0.19222]
[1753192410844,0.6138755,118520.0,118510.0,0.92258]
[1753192411044,0.6138755,118520.0,118510.0,1.0912496]
[1753192411347,0.9746755,118520.0,118510.0,0.92174]
[1753192411539,1.0199655,118520.0,118510.0,0.8004]
[1753192411738,1.37953319,118520.0,118510.0,0.04529]
[1753192411947,1.38153319,118520.0,118510.0,0.77609]
[1753192412142,1.0447155,118520.0,118510.0,0.77609]
[1753192412347,1.0219655,118520.0,118510.0,0.92182]
[1753192412645,0.8614555,118520.0,118510.0,1.0901696]
[1753192412849,0.8614555,118520.0,118510.0,1.0904496]
[1753192413046,0.8614555,118520.0,118510.0,0.92178]
[1753192413645,0.8614555,118520.0,118510.0,1.0904496]
[1753192413850,0.002,118520.0,118510.0,1.0904496]
[1753192414045,0.002,118520.0,118510.0,1.78806729]
[1753192414241,0.002,118520.0,118510.0,1.95681928]
[1753192414444,0.1706554,118520.0,118510.0,0.7216896]
[1753192414745,0.9766754,118520.0,118510.0,2.08874]
[1753192414949,0.6058754,118520.0,118510.0,2.6182096]
[1753192415144,0.6058754,118520.0,118510.0,2.44954]
[1753192415349,0.1706554,118520.0,118510.0,2.6182096]
[1753192415550,0.1706554,118520.0,118510.0,2.95502729]
[1753192416146,0.002,118520.0,118510.0,2.95502729]
[1753192416650,0.01695741,118530.0,118520.0,0.3598754]
[1753192416840,0.26985599,118550.0,118540.0,0.16627]
[1753192417039,0.32201219,118550.0,118540.0,0.9197]
[1753192417246,0.63201219,118550.0,118540.0,0.9197]
[1753192418044,0.63201219,118550.0,118540.0,0.19122]
[1753192418248,0.63801219,118550.0,118540.0,1.088687]
[1753192418449,0.59585599,118550.0,118540.0,1.088687]
[1753192418748,1.10097979,118550.0,118540.0,0.04629]
[1753192418955,0.69708979,118550.0,118540.0,1.085687]
[1753192419253,0.67272979,118550.0,118540.0,1.085687]
[1753192419549,1.03352979,118550.0,118540.0,1.085687]
[1753192419747,1.03352979,118550.0,118540.0,0.91706]
[1753192420246,0.6557968,118550.0,118540.0,1.085687]
[1753192420445,1.0409568,118550.0,118540.0,1.085007]
[1753192420649,1.42386449,118550.0,118540.0,0.001]
[1753192420843,1.42386449,118550.0,118540.0,0.77394]
[1753192421044,1.0165968,118550.0,118540.0,0.91783]
[1753192421244,1.0165968,118550.0,118540.0,0.91743]
[1753192421442,1.0409568,118550.0,118540.0,0.91743]
[1753192421641,1.0409568,118550.0,118540.0,0.361777]
[1753192421946,1.0870468,118550.0,118540.0,0.19335]
[1753192422154,1.42386449,118550.0,118540.0,0.0012]
[1753192422348,0.1686412,118530.0,118520.0,0.21072539]
[1753192422548,0.1686412,118530.0,118520.0,0.04826]
[1753192422549,1.76353889,118530.0,118520.0,0.04826]
[1753192422757,0.3090596,118510.0,118500.0,0.14389]
[1753192422956,1.74747729,118510.0,118500.0,0.86817]
[1753192423249,1.0306596,118510.0,118500.0,0.3125739]
[1753192423555,0.1686696,118510.0,118500.0,1.3976939]
[1753192423851,0.1696696,118510.0,118500.0,1.4479539]
[1753192424050,0.1696696,118510.0,118500.0,1.0871539]
[1753192424245,0.001,118510.0,118500.0,1.1443641]
[1753192424551,0.001,118530.0,118520.0,0.3608054]
[1753192424750,0.001,118530.0,118520.0,1.8657756]
[1753192424953,0.1696412,118530.0,118520.0,1.8657756]
[1753192425251,0.1696412,118530.0,118520.0,0.19215]
[1753192425454,1.32693922,118530.0,118520.0,0.91503]
[1753192425650,1.32693922,118530.0,118520.0,0.89081]
[1753192425651,1.37302922,118530.0,118520.0,0.89081]
[1753192426254,1.37302922,118530.0,118520.0,0.89013]
[1753192426446,0.6464712,118530.0,118520.0,1.0830054]
[1753192426645,0.9864712,118530.0,118520.0,1.0830054]
[1753192426848,1.0064712,118530.0,118520.0,0.91435]
[1753192427052,0.8404412,118530.0,118520.0,0.91435]
[1753192427247,0.9564712,118530.0,118520.0,0.91723]
[1753192427452,1.31793922,118530.0,118520.0,0.91715]
[1753192427652,0.5334412,118530.0,118520.0,1.0868054]
[1753192427858,0.1726412,118530.0,118520.0,1.4478854]
[1753192428054,0.004,118530.0,118520.0,1.4478854]
[1753192428257,0.004,118530.0,118520.0,1.4477254]
[1753192428762,0.004,118530.0,118520.0,1.95357742]
[1753192429466,0.1726412,118530.0,118520.0,1.6167894]
[1753192429758,0.004,118530.0,118520.0,0.7226054]
[1753192430060,0.5326412,118530.0,118520.0,1.8895254]
[1753192430360,0.5326412,118530.0,118520.0,2.6144454]
[1753192430658,1.34093922,118530.0,118520.0,2.08467]
[1753192430860,1.38702922,118530.0,118520.0,1.21618]
[1753192431460,1.38702922,118530.0,118520.0,1.89188]
[1753192431860,1.38702922,118530.0,118520.0,1.89128]
[1753192432058,0.1686554,118520.0,118510.0,0.04826]
[1753192432261,0.1686554,118520.0,118500.0,0.04826]
[1753192432262,0.48166,118510.0,118500.0,0.04826]
[1753192432462,1.21940129,118510.0,118500.0,0.9399439]
[1753192432658,0.63075089,118510.0,118500.0,1.0838339]
[1753192432858,0.98075089,118510.0,118500.0,1.0838339]
[1753192433361,1.09678089,118510.0,118500.0,1.0839539]
[1753192433556,1.50433891,118510.0,118500.0,1.060734]
[1753192433757,1.50433891,118510.0,118500.0,1.084954]
[1753192433758,1.12114089,118510.0,118500.0,1.084954]
[1753192433957,1.12114089,118510.0,118500.0,0.003]
[1753192433958,1.50433891,118510.0,118500.0,0.003]
[1753192434163,1.50533891,118510.0,118500.0,0.72532]
[1753192434459,1.50533891,118510.0,118500.0,0.77358]
[1753192434765,0.6140096,118510.0,118500.0,1.086154]
[1753192435058,1.1321295,118510.0,118500.0,0.19515]
[1753192435259,1.53532752,118510.0,118500.0,0.05126]
[1753192435657,1.53532752,118510.0,118500.0,0.77926]
[1753192436257,1.53532752,118510.0,118500.0,0.05126]
[1753192436456,1.53532752,118510.0,118500.0,0.77898]
[1753192436656,1.53532752,118510.0,118500.0,0.72988]
[1753192436857,1.1982195,118510.0,118500.0,0.72988]
[1753192437067,1.53532752,118510.0,118500.0,0.72988]
[1753192437366,1.1982195,118510.0,118500.0,0.05126]
[1753192437555,1.53532752,118510.0,118500.0,0.9468641]
[1753192437953,0.8182195,118510.0,118500.0,0.3396141]
[1753192438157,1.1421295,118510.0,118500.0,1.0901541]
[1753192438361,1.1251996,118510.0,118500.0,1.0901541]
[1753192439056,1.14218318,118510.0,118500.0,1.0901541]
[1753192439263,1.14218318,118510.0,118500.0,1.0903541]
[1753192439458,1.1251996,118510.0,118500.0,1.0903541]
[1753192440069,1.1008396,118510.0,118500.0,1.0903541]
[1753192440360,1.1008396,118510.0,118500.0,0.92167]
[1753192440564,1.50839762,118510.0,118500.0,0.7763]
[1753192440764,1.52537689,118510.0,118500.0,0.0032]
[1753192440958,1.52537689,118510.0,118500.0,0.72808]
[1753192441159,1.52537689,118510.0,118500.0,0.0032]
[1753192441359,1.5252998,118510.0,118500.0,0.72812]
[1753192441559,1.5252998,118510.0,118500.0,0.0032]
[1753192442057,0.1686841,118500.0,118490.0,0.0101916]
[1753192442357,0.2847426,118480.0,118470.0,0.3788334]
[1753192442563,1.1507026,118480.0,118470.0,1.1707549]
[1753192442756,1.1507026,118480.0,118470.0,0.4452349]
[1753192442757,1.0063426,118480.0,118470.0,0.4452349]
[1753192442957,1.3563426,118480.0,118470.0,1.1708749]
[1753192443164,0.50972752,118490.0,118480.0,0.1687126]
[1753192443165,0.3608,118490.0,118480.0,0.1687126]
[1753192443367,0.3618,118510.0,118500.0,0.3125741]
[1753192443667,0.5304699,118510.0,118500.0,1.0863141]
[1753192443865,0.9004699,118510.0,118500.0,1.0865141]
[1753192444062,0.5294699,118510.0,118500.0,1.0865141]
[1753192444762,0.8494699,118510.0,118500.0,1.0865141]
[1753192445065,0.8504699,118510.0,118500.0,0.19315]
[1753192445274,1.32796792,118510.0,118500.0,0.19315]
[1753192445575,1.37405792,118510.0,118500.0,0.001]
[1753192445768,1.54282592,118510.0,118500.0,0.001]
[1753192445969,1.54282592,118510.0,118500.0,1e-07]
[1753192446358,0.0421717,118500.0,118480.0,1.21538]
[1753192446664,0.3551926,118480.0,118470.0,0.04512367]
[1753192446864,0.1687268,118470.0,118460.0,6e-08]
[1753192447066,0.1687553,118450.0,118440.0,0.07520611]
[1753192447269,0.3308895,118440.0,118430.0,0.0001]
[1753192447458,1.54766952,118440.0,118430.0,0.01260279]
[1753192447664,1.37879752,118440.0,118430.0,0.01260279]
[1753192447864,0.1687838,118430.0,118420.0,0.01888541]
[1753192448066,1.35881182,118430.0,118420.0,0.01888541]
[1753192448470,0.6908,118430.0,118420.0,0.38071341]
[1753192448660,0.6295838,118430.0,118420.0,0.38071341]
[1753192448858,0.1,118430.0,118420.0,0.38071341]
[1753192449065,0.5295838,118430.0,118420.0,1.11099341]
[1753192449265,0.8995838,118430.0,118420.0,0.94243541]
[1753192449470,1.36428182,118430.0,118420.0,1.11123341]
[1753192449773,0.6563738,118430.0,118420.0,1.11123341]
[1753192449974,0.6501738,118430.0,118420.0,0.38171341]
[1753192450280,0.9601738,118430.0,118420.0,0.38171341]
[1753192450576,0.3353438,118430.0,118420.0,0.99139341]
[1753192450870,1.39325182,118430.0,118420.0,0.07343]
[1753192451078,1.39325182,118430.0,118420.0,0.001]
[1753192451272,0.3323723,118410.0,118400.0,0.73612]
[1753192451467,1.34028032,118410.0,118400.0,0.73728]
[1753192451668,1.34028032,118410.0,118400.0,0.005]
[1753192451872,1.70108032,118410.0,118400.0,0.005]
[1753192452480,1.70108032,118410.0,118400.0,0.1738267]
[1753192452678,1.70108032,118410.0,118400.0,0.005]
[1753192452881,1.3639723,118410.0,118400.0,0.005]
[1753192453081,1.2004123,118410.0,118400.0,0.3668567]
[1753192453479,1.70108032,118410.0,118400.0,0.005]
[1753192453683,1.70108032,118410.0,118400.0,0.2462564]
[1753192453880,1.70108032,118410.0,118400.0,0.07743]
[1753192454188,1.76108032,118410.0,118400.0,0.1738264]
[1753192454394,0.4408,118410.0,118400.0,0.2402365]
[1753192454684,0.11,118410.0,118400.0,0.4512673]
[1753192454888,0.38607802,118430.0,118410.0,0.0844013]
[1753192455081,0.373,118430.0,118420.0,0.361828]
[1753192455282,0.333,118430.0,118420.0,0.361828]
[1753192455483,0.88398618,118440.0,118430.0,0.1687838]
[1753192455677,1.77053858,118440.0,118430.0,0.07243]
[1753192455980,1.77053858,118440.0,118430.0,0.19303]
[1753192456380,1.77053858,118440.0,118430.0,0.92751]
[1753192456592,0.3608,118440.0,118430.0,0.3618138]
[1753192456779,0.3608,118460.0,118450.0,0.3617853]
[1753192457085,0.3608,118470.0,118460.0,0.1687411]
[1753192457389,0.8795269,118470.0,118460.0,0.14466]
[1753192457584,0.5295269,118470.0,118460.0,0.14466]
[1753192457784,0.89783673,118470.0,118460.0,0.19303]
[1753192457987,1.01542673,118470.0,118460.0,0.93395]
[1753192458184,1.35253475,118470.0,118460.0,1.1026911]
[1753192458384,1.01542673,118470.0,118460.0,0.19303]
[1753192458580,0.85569983,118470.0,118460.0,1.1126111]
[1753192458778,1.02442673,118470.0,118460.0,0.93423]
[1753192458983,0.73810983,118470.0,118460.0,1.1029711]
[1753192459388,1.24394475,118470.0,118460.0,0.3619711]
[1753192459585,1.36153475,118470.0,118460.0,1.1033311]
[1753192459883,1.40750475,118470.0,118460.0,0.0002]
[1753192460078,1.40750475,118470.0,118460.0,0.9107411]
[1753192460278,1.40750475,118470.0,118460.0,0.0002]
[1753192460481,1.40750475,118470.0,118460.0,0.74184]
[1753192460687,1.40750475,118470.0,118460.0,0.0002]
[1753192461190,1.07039673,118470.0,118460.0,0.9104611]
[1753192461389,1.40750475,118470.0,118460.0,0.9104611]
[1753192461586,0.009,118470.0,118460.0,0.3619711]
[1753192461787,0.009,118470.0,118460.0,1.4648511]
[1753192462195,0.00398644,118470.0,118460.0,1.4648511]
[1753192462384,0.01712259,118480.0,118470.0,0.1687269]
[1753192462589,0.01692259,118480.0,118470.0,0.69906492]
[1753192462788,0.0002,118490.0,118480.0,0.3617426]
[1753192463101,0.1688842,118500.0,118490.0,0.19303]
[1753192463297,1.44586232,118500.0,118490.0,0.74316]
[1753192463597,1.44586232,118500.0,118490.0,0.0002]
[1753192463800,0.1687126,118480.0,118470.0,0.19303]
[1753192464091,1.36711062,118480.0,118470.0,0.04837]
[1753192464292,0.1687411,118460.0,118450.0,0.55383]
[1753192464591,1.30423912,118460.0,118450.0,0.19303]
[1753192464790,0.3492454,118450.0,118440.0,0.01867557]
[1753192464989,1.6687696,118440.0,118430.0,0.19303]
[1753192465190,2.89023762,118440.0,118430.0,0.19303]
[1753192465389,2.5531296,118440.0,118430.0,0.19303]
[1753192465584,2.3895696,118440.0,118430.0,0.19303]
[1753192465791,1.9887696,118440.0,118430.0,0.19303]
[1753192465988,1.9887696,118440.0,118430.0,1.1056139]
[1753192465989,1.5,118440.0,118430.0,1.1056139]
[1753192466191,1.5,118440.0,118430.0,2.22239392]
[1753192466591,1.5,118440.0,118430.0,1.8852859]
[1753192466998,1.5,118440.0,118430.0,1.1414859]
[1753192467195,0.3628,118460.0,118450.0,0.3617854]
[1753192467395,0.5295411,118460.0,118450.0,1.1051454]
[1753192467596,0.1687411,118460.0,118450.0,0.3617854]
[1753192467795,0.5737165,118470.0,118460.0,0.3377111]
[1753192467995,0.2129165,118470.0,118460.0,0.3617711]
[1753192468196,0.5629165,118470.0,118460.0,0.93595]
[1753192468397,1.32559943,118470.0,118460.0,0.19303]
[1753192468594,0.38769141,118470.0,118460.0,1.1042911]
[1753192468793,0.66252141,118470.0,118460.0,0.19303]
[1753192468989,0.95252141,118470.0,118460.0,0.93551]
[1753192469193,0.59252141,118470.0,118460.0,1.1042511]
[1753192469393,0.59252141,118470.0,118460.0,0.93551]
[1753192469599,0.1707269,118470.0,118460.0,1.1042511]
[1753192469798,0.002,118470.0,118460.0,1.4650511]
[1753192469999,0.002,118470.0,118460.0,1.97098312]
[1753192470399,0.002,118470.0,118460.0,1.6338751]
[1753192471302,0.002,118470.0,118460.0,0.8913951]
[1753192471503,0.9274969,118470.0,118460.0,2.2701311]
[1753192471706,0.04797,118470.0,118460.0,2.6309311]
[1753192471898,0.34,118470.0,118460.0,2.6309311]
[1753192472095,0.34,118470.0,118460.0,2.6305311]
[1753192472598,0.4787267,118470.0,118460.0,2.2697311]
[1753192472804,0.1707267,118470.0,118460.0,1.5292911]
[1753192473000,1.41219472,118470.0,118460.0,0.19303]
[1753192473307,1.7568983,118460.0,118450.0,0.3617851]
[1753192473497,2.07461522,118460.0,118450.0,1.1024251]
[1753192473698,1.5,118460.0,118450.0,1.1024251]
[1753192473902,1.9987407,118460.0,118450.0,1.4632251]
[1753192474206,1.9887407,118460.0,118450.0,0.7225851]
[1753192474402,2.3895407,118460.0,118450.0,0.93379]
[1753192474704,2.0295407,118460.0,118450.0,1.1021849]
[1753192474907,2.4095407,118460.0,118450.0,1.1021849]
[1753192475303,2.0497407,118460.0,118450.0,1.4629849]
[1753192475607,1.871,118460.0,118450.0,1.1021849]
[1753192475807,2.0397408,118460.0,118450.0,1.1021849]
[1753192476007,2.4005408,118460.0,118450.0,1.1015051]
[1753192476200,2.4005408,118460.0,118450.0,0.93267]
[1753192476400,2.76361882,118460.0,118450.0,0.93267]
[1753192476594,2.4265108,118460.0,118450.0,0.19303]
[1753192476796,2.90391882,118460.0,118450.0,0.7394]
[1753192476998,0.2863451,118450.0,118440.0,0.13934138]
[1753192477198,1.05293312,118450.0,118440.0,1.09524068]
[1753192477402,1.37293312,118450.0,118440.0,0.18771138]
[1753192477602,1.37293312,118450.0,118440.0,0.13934138]
[1753192477801,1.37293312,118450.0,118440.0,0.87782138]
[1753192478003,1.37293312,118450.0,118440.0,0.87762138]
[1753192478504,1.37293312,118450.0,118440.0,0.01874138]
[1753192478706,1.37393312,118450.0,118440.0,0.02274138]
[1753192478905,0.1688121,118410.0,118400.0,0.26655677]
[1753192479211,1.22672012,118410.0,118400.0,0.94482]
[1753192479405,0.9059221,118410.0,118400.0,0.94482]
[1753192479605,0.5759221,118410.0,118400.0,0.94482]
[1753192479902,0.73711,118410.0,118400.0,0.3751664]
[1753192480104,0.5759221,118410.0,118400.0,1.1137264]
[1753192480307,0.5296121,118410.0,118400.0,1.1137264]
[1753192480504,0.5296121,118410.0,118400.0,1.4747264]
[1753192480505,0.32,118410.0,118400.0,1.4747264]
[1753192480805,0.0002,118420.0,118410.0,0.3659321]
[1753192481007,0.1689836,118430.0,118420.0,0.3659179]
[1753192481206,0.5287836,118430.0,118420.0,0.19732]
[1753192481403,0.8895836,118430.0,118420.0,1.1048779]
[1753192481602,0.8895836,118430.0,118420.0,0.3661179]
[1753192481799,0.8895836,118430.0,118420.0,1.1046379]
[1753192482004,1.42174162,118430.0,118420.0,0.9356]
[1753192482209,1.08474162,118430.0,118420.0,0.9126]
[1753192482411,1.39474162,118430.0,118420.0,0.12602]
[1753192482612,1.39474162,118430.0,118420.0,0.0012]
[1753192482808,1.39474162,118430.0,118420.0,0.73904]
[1753192483210,1.39574162,118430.0,118420.0,0.73904]
[1753192483613,1.81462162,118430.0,118420.0,0.0012]
[1753192484013,1.56462162,118430.0,118420.0,0.0012]
[1753192484202,1.0586336,118430.0,118420.0,0.0012]
[1753192484509,1.0586336,118430.0,118420.0,0.73856]
[1753192484706,1.0586336,118430.0,118420.0,0.86338]
[1753192484912,1.39574162,118430.0,118420.0,0.0012]
[1753192485214,1.39574162,118430.0,118420.0,0.73756]
[1753192485710,1.0586336,118430.0,118420.0,0.3671178]
[1753192486016,1.0586336,118430.0,118420.0,0.0012]
[1753192486315,1.39574162,118430.0,118420.0,0.0012]
[1753192486621,1.41460856,118430.0,118420.0,0.0012]
[1753192487012,1.39574162,118430.0,118420.0,0.0012]
[1753192487216,1.39574162,118430.0,118420.0,0.73992]
[1753192487408,1.41367926,118430.0,118420.0,0.73992]
[1753192487714,1.41367926,118430.0,118420.0,0.2948178]
[1753192487914,1.08367926,118430.0,118420.0,0.93652]
[1753192488105,1.40367926,118430.0,118420.0,0.93652]
[1753192488419,1.11657124,118430.0,118420.0,0.93652]
[1753192488610,1.0986336,118430.0,118420.0,0.93652]
[1753192488807,1.43574162,118430.0,118420.0,0.93652]
[1753192490210,0.5335836,118430.0,118420.0,1.1053178]
[1753192491313,0.8635836,118430.0,118420.0,1.1053178]
[1753192492009,0.9398936,118430.0,118420.0,0.19832]
[1753192492203,1.42574162,118430.0,118420.0,0.93432]
[1753192492414,1.42574162,118430.0,118420.0,0.12602]
[1753192492618,1.42574162,118430.0,118420.0,0.0012]
[1753192493311,1.42574162,118430.0,118420.0,0.19832]
[1753192493505,1.42574162,118430.0,118420.0,0.73656]
[1753192493708,1.44261477,118430.0,118420.0,0.0012]
[1753192493910,1.61149477,118430.0,118420.0,1e-07]
[1753192494119,0.3638621,118410.0,118400.0,0.00922]
[1753192494313,1.74257012,118410.0,118400.0,0.74426]
[1753192494513,1.74257012,118410.0,118400.0,0.00922]
[1753192495416,1.4054621,118410.0,118400.0,0.00922]
[1753192495718,1.74257012,118410.0,118400.0,0.00922]
[1753192496518,1.74257012,118410.0,118400.0,0.01122]
[1753192497516,1.74457012,118410.0,118400.0,0.01422]
[1753192497717,1.74457012,118410.0,118400.0,0.01222]
[1753192497907,1.74457012,118410.0,118400.0,0.01322]
[1753192498110,1.74357012,118410.0,118400.0,0.01222]
[1753192498710,0.1688692,118370.0,118360.0,0.2393377]
[1753192498909,0.5759728,118380.0,118370.0,0.1688692]
[1753192499107,0.724705,118380.0,118370.0,0.3421892]
[1753192499308,0.724705,118380.0,118370.0,1.1045492]
[1753192499915,0.95118132,118390.0,118380.0,0.168855]
[1753192500116,1.47146132,118390.0,118380.0,0.14862]
[1753192500321,1.49623132,118390.0,118380.0,0.12482]
[1753192500518,0.168855,118380.0,118370.0,0.9560464]
[1753192500723,1.036705,118380.0,118370.0,0.9358]
[1753192500926,1.036705,118380.0,118370.0,0.19712]
[1753192501125,1.06181302,118380.0,118370.0,0.73948]
[1753192501819,0.2151792,118370.0,118360.0,0.3660035]
[1753192502131,0.7247192,118370.0,118360.0,0.19712]
[1753192502421,0.7247192,118370.0,118360.0,0.8663]
[1753192502616,1.06182722,118370.0,118360.0,0.8663]
[1753192502816,1.06182722,118370.0,118360.0,0.9148]
[1753192503016,1.06182722,118370.0,118360.0,0.74148]
[1753192503215,0.1688835,118360.0,118350.0,0.1989711]
[1753192503419,0.6999635,118360.0,118350.0,0.8893]
[1753192503615,0.5296835,118360.0,118350.0,1.1066978]
[1753192503923,0.6604273,118370.0,118360.0,0.3660035]
[1753192504122,0.6182072,118370.0,118360.0,0.3660035]
[1753192504318,0.002,118380.0,118370.0,0.3659892]
[1753192504518,0.002,118380.0,118370.0,1.06389722]
[1753192504722,0.01745085,118400.0,118390.0,0.1688407]
[1753192504924,0.01745085,118400.0,118390.0,1.0860007]
[1753192505220,0.18627725,118400.0,118390.0,1.1098007]
[1753192505525,0.54707725,118400.0,118390.0,1.1098007]
[1753192505720,0.59338725,118400.0,118390.0,0.19712]
[1753192505921,1.07923527,118400.0,118390.0,0.19712]
[1753192506115,0.74212725,118400.0,118390.0,1.1083207]
[1753192506321,0.18627725,118400.0,118390.0,1.1083207]
[1753192506515,0.02045085,118400.0,118390.0,1.1083207]
[1753192506720,0.18927725,118400.0,118390.0,1.4686007]
[1753192507124,0.003,118400.0,118390.0,1.4686007]
[1753192507318,0.1718264,118400.0,118390.0,1.4686007]
[1753192507518,0.1718264,118400.0,118390.0,1.1078007]
[1753192507720,0.1718264,118400.0,118390.0,1.4686007]
[1753192508027,0.1718264,118400.0,118390.0,1.1074806]
[1753192508227,0.55524442,118400.0,118390.0,0.19712]
[1753192508418,0.3589464,118400.0,118390.0,0.93808]
[1753192508618,0.69605442,118400.0,118390.0,0.93808]
[1753192508818,0.69605442,118400.0,118390.0,1.1069206]
[1753192509026,0.7217464,118400.0,118390.0,1.1079206]
[1753192509226,0.3609464,118400.0,118390.0,1.1079206]
[1753192509528,1.05885442,118400.0,118390.0,0.93908]
[1753192510128,1.05885442,118400.0,118390.0,0.86686]
[1753192510321,1.05885442,118400.0,118390.0,0.12582]
[1753192510522,1.05885442,118400.0,118390.0,0.0012]
[1753192510726,1.05885442,118400.0,118390.0,0.7404]
[1753192510926,0.7217464,118400.0,118390.0,0.7404]
[1753192511126,1.05885442,118400.0,118390.0,0.0012]
[1753192511429,1.05885442,118400.0,118390.0,0.74]
[1753192511623,1.05885442,118400.0,118390.0,0.0012]
[1753192512418,0.7217464,118400.0,118390.0,0.2873206]
[1753192512624,0.5346264,118400.0,118390.0,0.3619106]
[1753192513931,0.3658,118400.0,118390.0,0.3619106]
[1753192514123,0.3658,118400.0,118390.0,0.78335264]
[1753192514428,0.005,118400.0,118390.0,0.78335264]
[1753192514623,0.1738264,118400.0,118390.0,0.93079]
[1753192514831,0.59526844,118400.0,118390.0,0.19307]
[1753192515022,0.64371844,118400.0,118390.0,0.92999]
[1753192515223,1.03856452,118400.0,118390.0,0.19307]
[1753192515423,1.03856452,118400.0,118390.0,0.73768]
[1753192515424,1.06192452,118400.0,118390.0,0.73768]
[1753192515821,1.06192452,118400.0,118390.0,0.73712]
[1753192516229,0.2173049,118380.0,118370.0,0.21086069]
[1753192516528,0.2111054,118360.0,118350.0,0.02469]
[1753192516727,0.2111054,118360.0,118340.0,0.11208484]
[1753192516728,0.2173477,118350.0,118340.0,0.11208484]
[1753192516928,1.05699582,118350.0,118340.0,0.08739484]
[1753192517129,1.05699582,118350.0,118340.0,4e-08]
[1753192517732,1.43807106,118350.0,118340.0,4e-08]
[1753192517937,1.42699582,118350.0,118340.0,4e-08]
[1753192518130,1.0889577,118350.0,118340.0,4e-08]
[1753192518324,1.44489439,118350.0,118340.0,4e-08]
[1753192519234,1.09699582,118350.0,118340.0,0.11728004]
[1753192519435,0.4081577,118350.0,118340.0,0.33609204]
[1753192519735,0.1688977,118350.0,118340.0,1.01488094]
[1753192519932,0.002,118350.0,118340.0,1.01660034]
[1753192520131,1.7110895,118370.0,118360.0,0.1688834]
[1753192520334,1.5,118370.0,118360.0,1.4101334]
[1753192520536,1.5,118370.0,118360.0,1.4600334]
[1753192520936,1.5,118370.0,118360.0,2.01703952]
[1753192521331,1.5,118370.0,118360.0,1.6790014]
[1753192521530,1.6688691,118370.0,118360.0,0.410838]
[1753192521731,2.0781191,118370.0,118360.0,0.3607534]
[1753192521933,2.0781191,118370.0,118360.0,0.19187]
[1753192522140,2.89796722,118370.0,118360.0,0.001]
[1753192522331,2.89896722,118370.0,118360.0,0.001]
[1753192522531,0.3347977,118350.0,118340.0,0.36078204]
[1753192522726,0.55006,118350.0,118340.0,1.09746204]
[1753192522935,0.3608,118350.0,118340.0,1.09746204]
[1753192523136,0.3608,118350.0,118340.0,0.36078204]
[1753192523328,0.3608,118360.0,118350.0,0.1688977]
[1753192523533,1.503,118370.0,118360.0,0.3607534]
[1753192523732,1.503,118370.0,118360.0,1.4577134]
[1753192524036,1.501,118370.0,118360.0,1.4577134]
[1753192524830,1.501,118370.0,118360.0,1.0969134]
[1753192525041,1.501,118370.0,118360.0,1.4577134]
[1753192525231,1.6698692,118370.0,118360.0,0.19187]
[1753192525531,2.0781192,118370.0,118360.0,0.19287]
[1753192525732,2.2189292,118370.0,118360.0,0.19287]
[1753192525939,2.93696732,118370.0,118360.0,0.73788]
[1753192526139,2.93696732,118370.0,118360.0,0.001]
[1753192526333,2.93696732,118370.0,118360.0,0.738]
[1753192526533,2.93696732,118370.0,118360.0,0.001]
[1753192526737,2.95483562,118370.0,118360.0,1e-07]
[1753192527140,0.1688978,118350.0,118340.0,4e-08]
[1753192527338,1.55853592,118350.0,118340.0,0.73700004]
[1753192527533,1.55853592,118350.0,118340.0,4e-08]
[1753192527738,1.69934592,118350.0,118340.0,0.73664004]
[1753192527936,0.1689119,118340.0,118330.0,0.11736]
[1753192528142,1.0489719,118340.0,118330.0,0.85324]
[1753192528336,1.36701002,118340.0,118330.0,0.11736]
[1753192528538,0.7189719,118340.0,118330.0,0.16726]
[1753192528732,0.7189719,118340.0,118330.0,0.11736]
[1753192528935,0.7189719,118340.0,118330.0,0.2862862]
[1753192529145,0.7189719,118340.0,118330.0,1.0721462]
[1753192529346,1.0389719,118340.0,118330.0,0.90314]
[1753192529533,0.7189719,118340.0,118330.0,0.90314]
[1753192529737,0.7189719,118340.0,118330.0,1.0720662]
[1753192529937,0.5781619,118340.0,118330.0,0.3608762]
[1753192530143,0.6471619,118340.0,118330.0,0.92747]
[1753192530340,0.3097362,118330.0,118320.0,0.0101916]
[1753192530640,0.2864047,118310.0,118300.0,0.19687]
[1753192530948,0.5782047,118310.0,118300.0,1.111599]
[1753192531135,0.5297547,118310.0,118300.0,1.111599]
[1753192531336,0.6142256,118320.0,118310.0,0.2862347]
[1753192531538,1.14152372,118320.0,118310.0,0.91262]
[1753192531742,1.14152372,118320.0,118310.0,0.11728]
[1753192531941,1.14152372,118320.0,118310.0,0.8626]
[1753192532142,0.8034856,118320.0,118310.0,1.0814547]
[1753192532344,0.40925,118320.0,118310.0,1.1061447]
[1753192532541,0.5719613,118330.0,118320.0,0.19187]
[1753192532849,0.6234113,118330.0,118320.0,0.3618104]
[1753192533041,0.6234113,118330.0,118320.0,0.3620104]
[1753192533237,0.003,118330.0,118320.0,0.7228104]
[1753192534238,0.1719261,118330.0,118320.0,0.19307]
[1753192534443,0.1719261,118330.0,118320.0,0.86852]